fUST/lending_fUST_20250407
["ID","MTS","AMOUNT","RATE_DAILY","PERIOD"]
[357300085,1743999058816,-500.0,0.00038904,7]
[357300086,1743999058827,-319.69515834,0.00038904,7]
[357300087,1743999058837,-1235.1,0.00038904,7]
[357300088,1743999058848,-500.0,0.00038904,7]
[357300089,1743999058858,-500.0,0.00038904,7]
[357300090,1743999058868,-1129.9,0.00038904,7]
[357300091,1743999058878,-2511.7,0.00038904,7]
[357300092,1743999058888,-500.0,0.00038904,7]
[357300093,1743999058898,-499.83382515,0.00038904,7]
[357300094,1743999058908,-500.0,0.00038904,7]
[357300095,1743999058917,-500.0,0.00038904,7]
[357300096,1743999058928,-882.15,0.00038904,7]
[357300097,1743999058938,-2115.76,0.00038904,7]
[357300098,1743999058948,-500.0,0.00038904,7]
[357300099,1743999058957,-500.0,0.00038904,7]
[357300100,1743999058966,-578.7519202,0.00038904,7]
[357300101,1743999058975,-500.0,0.00038904,7]
[357300102,1743999058985,-500.0,0.00038904,7]
[357300103,1743999058995,-500.0,0.00038904,7]
[357300104,1743999059005,-500.0,0.00038904,7]
[357300105,1743999059019,-500.0,0.00038904,7]
[357300106,1743999059029,-500.0,0.00038904,7]
[357300107,1743999059038,-500.0,0.00038904,7]
[357300108,1743999059047,-500.0,0.00038904,7]
[357300109,1743999059057,-500.0,0.00038904,7]
[357300110,1743999059066,-1957.15,0.00038904,7]
[357300111,1743999059076,-1244.29,0.00038904,7]
[357300112,1743999059086,-500.0,0.00038904,7]
[357300113,1743999059095,-500.0,0.00038904,7]
[357300114,1743999059105,-971.01,0.00038904,7]
[357300115,1743999059114,-500.0,0.00038904,7]
[357300116,1743999059124,-500.0,0.00038904,7]
[357300117,1743999059133,-500.0,0.00038904,7]
[357300118,1743999059142,-500.0,0.00038904,7]
[357300119,1743999059151,-500.0,0.00038904,7]
[357300120,1743999059161,-573.33,0.00038904,7]
[357300121,1743999059171,-500.0,0.00038904,7]
[357300122,1743999059182,-1079.38,0.00038904,7]
[357300123,1743999059191,-500.0,0.00038904,7]
[357300124,1743999059201,-2231.25,0.00038904,7]
[357300125,1743999059211,-633.15,0.00038904,7]
[357300126,1743999059220,-500.0,0.00038904,7]
[357300127,1743999059229,-500.0,0.00038904,7]
[357300128,1743999059239,-860.01,0.00038904,7]
[357300129,1743999059248,-1123.02,0.00038904,7]
[357300130,1743999059258,-500.0,0.00038904,7]
[357300131,1743999059267,-500.0,0.00038904,7]
[357300132,1743999059277,-500.0,0.00038904,7]
[357300133,1743999059286,-500.0,0.00038904,7]
[357300134,1743999059295,-500.0,0.00038904,7]
[357300135,1743999059305,-500.0,0.00038904,7]
[357300136,1743999059314,-500.0,0.00038904,7]
[357300137,1743999059323,-500.0,0.00038904,7]
[357300138,1743999059331,-500.0,0.00038904,7]
[357300139,1743999059341,-500.0,0.00038904,7]
[357300140,1743999059350,-1176.27,0.00038904,7]
[357300141,1743999059360,-507.33981391,0.00038904,7]
[357300142,1743999059369,-505.25366765,0.00038904,7]
[357300143,1743999059378,-500.0,0.00038904,7]
[357300144,1743999059387,-500.0,0.00038904,7]
[357300145,1743999059396,-500.0,0.00038904,7]
[357300146,1743999059406,-2998.3,0.00038904,7]
[357300147,1743999059416,-500.0,0.00038904,7]
[357300148,1743999059427,-953.53,0.00038904,7]
[357300149,1743999059437,-500.0,0.00038904,7]
[357300150,1743999059446,-1355.54,0.00038904,7]
[357300151,1743999059455,-500.0,0.00038904,7]
[357300152,1743999059465,-500.0,0.00038904,7]
[357300153,1743999059475,-3062.34,0.00038904,7]
[357300154,1743999059485,-500.0,0.00038904,7]
[357300155,1743999059494,-423.07709117,0.00038904,7]
[357300156,1743999059503,-500.0,0.00038904,7]
[357300157,1743999059512,-500.0,0.00038904,7]
[357300158,1743999059521,-500.0,0.00038904,7]
[357300159,1743999059531,-500.0,0.00038904,7]
[357300160,1743999059540,-500.0,0.00038904,7]
[357300161,1743999059550,-500.0,0.00038904,7]
[357300162,1743999059559,-500.0,0.00038904,7]
[357300163,1743999059569,-798.12,0.00038904,7]
[357300164,1743999059579,-1613.69,0.00038904,7]
[357300165,1743999059589,-500.0,0.00038904,7]
[357300166,1743999059598,-500.0,0.00038904,7]
[357300167,1743999059608,-3548.41,0.00038904,7]
[357300168,1743999059617,-346.06198665,0.00038904,7]
[357300169,1743999059627,-500.0,0.00038904,7]
[357300170,1743999059636,-500.0,0.00038904,7]
[357300171,1743999059646,-500.0,0.00038904,7]
[357300172,1743999059656,-500.0,0.00038904,7]
[357300173,1743999059669,-704.04,0.00038904,7]
[357300174,1743999059680,-500.0,0.00038904,7]
[357300175,1743999059690,-500.0,0.00038904,7]
[357300176,1743999059699,-2545.27,0.00038904,7]
[357300177,1743999059709,-7458.22,0.00038904,7]
[357300178,1743999059718,-500.0,0.00038904,7]
[357300179,1743999059728,-1543.8,0.00038904,7]
[357300180,1743999059738,-500.0,0.00038904,7]
[357300181,1743999059747,-500.0,0.00038904,7]
[357300182,1743999059757,-1149.97,0.00038904,7]
[357300183,1743999059768,-500.0,0.00038904,7]
[357300184,1743999059778,-500.0,0.00038904,7]
[357300185,1743999059788,-1198.06,0.00038904,7]
[357300186,1743999059798,-635.38,0.00038904,7]
[357300187,1743999059807,-500.0,0.00038904,7]
[357300188,1743999059817,-541.59,0.00038904,7]
[357300189,1743999059827,-1015.47,0.00038904,7]
[357300190,1743999059837,-546.01,0.00038904,7]
[357300191,1743999059847,-500.0,0.00038904,7]
[357300192,1743999059856,-1323.14,0.00038904,7]
[357300193,1743999059866,-500.0,0.00038904,7]
[357300194,1743999059875,-1756.05,0.00038904,7]
[357300195,1743999059885,-535.22882063,0.00038904,7]
[357300196,1743999059896,-500.0,0.00038904,7]
[357300197,1743999059906,-577.2,0.00038904,7]
[357300198,1743999059915,-500.0,0.00038904,7]
[357300199,1743999059926,-500.0,0.00038904,7]
[357300200,1743999059936,-500.0,0.00038904,7]
[357300201,1743999059946,-4122.85,0.00038904,7]
[357300202,1743999059956,-776.24,0.00038904,7]
[357300203,1743999059965,-500.0,0.00038904,7]
[357300204,1743999059975,-500.0,0.00038904,7]
[357300205,1743999059985,-1159.91,0.00038904,7]
[357300206,1743999059995,-758.62,0.00038904,7]
[357300207,1743999060005,-500.0,0.00038904,7]
[357300208,1743999060015,-500.0,0.00038904,7]
[357300209,1743999060029,-1598.41,0.00038904,7]
[357300210,1743999060039,-557.22,0.00038904,7]
[357300211,1743999060050,-20494.34,0.00038904,7]
[357300212,1743999060061,-500.0,0.00038904,7]
[357300213,1743999060076,-606.51,0.00038904,7]
[357300214,1743999060086,-500.0,0.00038904,7]
[357300215,1743999060098,-493.83710314,0.00038904,7]
[357300216,1743999060109,-801.33,0.00038904,7]
[357300217,1743999060119,-500.0,0.00038904,7]
[357300218,1743999060140,-500.0,0.00038904,7]
[357300219,1743999060151,-500.0,0.00038904,7]
[357300220,1743999060162,-500.0,0.00038904,7]
[357300221,1743999060172,-500.0,0.00038904,7]
[357300222,1743999060183,-528.76,0.00038904,7]
[357300223,1743999060194,-500.0,0.00038904,7]
[357300224,1743999060204,-500.0,0.00038904,7]
[357300225,1743999060214,-500.0,0.00038904,7]
[357300226,1743999060224,-1791.73,0.00038904,7]
[357300227,1743999060234,-500.0,0.00038904,7]
[357300228,1743999060245,-500.0,0.00038904,7]
[357300229,1743999060255,-561.77574569,0.00038904,7]
[357300230,1743999060265,-500.0,0.00038904,7]
[357300231,1743999060276,-500.0,0.00038904,7]
[357300232,1743999060286,-2408.79,0.00038904,7]
[357300233,1743999060296,-500.0,0.00038904,7]
[357300234,1743999060306,-500.0,0.00038904,7]
[357300235,1743999060317,-500.0,0.00038904,7]
[357300236,1743999060327,-500.0,0.00038904,7]
[357300237,1743999060337,-976.13,0.00038904,7]
[357300238,1743999060347,-2860.97,0.00038904,2]
[357300239,1743999060357,-500.0,0.00038904,7]
[357300240,1743999060367,-500.0,0.00038904,7]
[357300241,1743999060378,-500.0,0.00038904,7]
[357300242,1743999060388,-500.0,0.00038904,7]
[357300243,1743999060398,-554.55,0.00038904,7]
[357300244,1743999060409,-6441.92,0.00038904,7]
[357300245,1743999060419,-500.0,0.00038904,7]
[357300246,1743999060433,-500.0,0.00038904,7]
[357300247,1743999060443,-500.0,0.00038904,7]
[357300248,1743999060454,-562.22,0.00038904,7]
[357300249,1743999060465,-500.0,0.00038904,7]
[357300250,1743999060475,-500.0,0.00038904,7]
[357300251,1743999060486,-1285.05,0.00038904,7]
[357300252,1743999060496,-6825.27,0.00038904,7]
[357300253,1743999060507,-500.0,0.00038904,7]
[357300254,1743999060517,-500.0,0.00038904,7]
[357300255,1743999060527,-533.02,0.00038904,7]
[357300256,1743999060538,-500.0,0.00038904,7]
[357300257,1743999060548,-7038.46,0.00038904,7]
[357300258,1743999060558,-850.81,0.00038904,7]
[357300259,1743999060568,-500.0,0.00038904,7]
[357300260,1743999060579,-749.51,0.00038904,7]
[357300261,1743999060588,-500.0,0.00038904,7]
[357300262,1743999060599,-9271.27,0.00038904,7]
[357300263,1743999060609,-561.03876513,0.00038904,7]
[357300264,1743999060620,-500.0,0.00038904,7]
[357300265,1743999060630,-815.55,0.00038904,7]
[357300266,1743999060640,-500.0,0.00038904,7]
[357300267,1743999060650,-740.56,0.00038904,7]
[357300268,1743999060660,-7581.46,0.00038904,7]
[357300269,1743999060672,-2322.26,0.00038904,7]
[357300270,1743999060684,-500.0,0.00038904,7]
[357300271,1743999060694,-500.0,0.00038904,7]
[357300272,1743999060704,-1678.06,0.00038904,7]
[357300273,1743999060715,-500.0,0.00038904,7]
[357300274,1743999060724,-500.0,0.00038904,7]
[357300275,1743999060738,-500.0,0.00038904,7]
[357300276,1743999060748,-546.3,0.00038904,7]
[357300277,1743999060758,-500.0,0.00038904,7]
[357300278,1743999060768,-2239.86,0.00038904,7]
[357300279,1743999060778,-500.0,0.00038904,7]
[357300280,1743999060789,-450.18079945,0.00038904,7]
[357300281,1743999060799,-1992.21,0.00038904,7]
[357300282,1743999060809,-5222.49,0.00038904,7]
[357300283,1743999060820,-500.0,0.00038904,7]
[357300284,1743999060830,-4754.1,0.00038904,7]
[357300285,1743999060841,-2107.47,0.00038904,7]
[357300286,1743999060851,-2901.78,0.00038904,7]
[357300287,1743999060863,-500.0,0.00038904,7]
[357300288,1743999060873,-500.0,0.00038904,7]
[357300289,1743999060883,-500.0,0.00038904,7]
[357300290,1743999060893,-500.0,0.00038904,7]
[357300291,1743999060904,-500.0,0.00038904,7]
[357300292,1743999060914,-1000.0,0.00038904,3]
[357300293,1743999060927,-219.59325818,0.00038904,7]
[357300294,1743999060937,-525.89,0.00038904,7]
[357300295,1743999060947,-1115.98,0.00038904,7]
[357300296,1743999060958,-1085.62,0.00038904,7]
[357300297,1743999060968,-500.0,0.00038904,7]
[357300298,1743999060978,-1195.53,0.00038904,7]
[357300299,1743999060989,-500.0,0.00038904,7]
[357300300,1743999061000,-500.0,0.00038904,7]
[357300301,1743999061014,-10765.04,0.00038904,7]
[357300302,1743999061024,-2187.41,0.00038904,7]
[357300303,1743999061034,-500.0,0.00038904,7]
[357300304,1743999061044,-535.02,0.00038904,7]
[357300305,1743999061055,-500.0,0.00038904,7]
[357300306,1743999061064,-500.0,0.00038904,7]
[357300307,1743999061075,-712.26,0.00038904,7]
[357300308,1743999061084,-568.12,0.00038904,7]
[357300309,1743999061095,-500.0,0.00038904,7]
[357300310,1743999061105,-500.0,0.00038904,7]
[357300311,1743999061115,-1109.5,0.00038904,7]
[357300312,1743999061126,-6670.03,0.00038904,7]
[357300313,1743999061136,-500.0,0.00038904,7]
[357300314,1743999061146,-675.86,0.00038904,7]
[357300315,1743999061157,-500.0,0.00038904,7]
[357300316,1743999061167,-500.0,0.00038904,7]
[357300317,1743999061183,-1071.0,0.00038904,7]
[357300318,1743999061193,-500.0,0.00038904,7]
[357300319,1743999061206,-500.0,0.00038904,7]
[357300320,1743999061217,-568.72,0.00038904,7]
[357300321,1743999061228,-500.0,0.00038904,7]
[357300322,1743999061238,-808.46,0.00038904,7]
[357300323,1743999061249,-507.92657348,0.00038904,7]
[357300324,1743999061259,-507.2723643,0.00038904,7]
[357300325,1743999061270,-500.0,0.00038904,7]
[357300326,1743999061281,-500.0,0.00038904,7]
[357300327,1743999061291,-500.0,0.00038904,7]
[357300328,1743999061301,-500.0,0.00038904,7]
[357300329,1743999061311,-500.0,0.00038904,7]
[357300330,1743999061321,-4170.44,0.00038904,7]
[357300331,1743999061333,-1807.07,0.00038904,7]
[357300332,1743999061343,-586.4265152,0.00038904,7]
[357300333,1743999061355,-500.0,0.00038904,7]
[357300334,1743999061367,-308.77223995,0.00038904,7]
[357300335,1743999061377,-500.0,0.00038904,7]
[357300336,1743999061390,-500.0,0.00038904,7]
[357300337,1743999061401,-523.97389527,0.00038904,7]
[357300338,1743999061412,-500.0,0.00038904,7]
[357300339,1743999061426,-500.0,0.00038904,7]
[357300340,1743999061437,-2267.94,0.00038904,7]
[357300341,1743999061448,-8180.17,0.00038904,7]
[357300342,1743999061459,-500.0,0.00038904,7]
[357300343,1743999061471,-500.0,0.00038904,7]
[357300344,1743999061482,-500.0,0.00038904,7]
[357300345,1743999061492,-500.0,0.00038904,7]
[357300346,1743999061503,-325.2865497,0.00038904,7]
[357300347,1743999061514,-500.0,0.00038904,7]
[357300348,1743999061524,-537.36,0.00038904,7]
[357300349,1743999061535,-500.0,0.00038904,7]
[357300350,1743999061548,-1000.0,0.00038904,90]
[357300351,1743999061558,-500.0,0.00038904,7]
[357300352,1743999061568,-500.0,0.00038904,7]
[357300353,1743999061579,-500.0,0.00038904,7]
[357300354,1743999061590,-500.0,0.00038904,7]
[357300355,1743999061600,-500.0,0.00038904,7]
[357300356,1743999061610,-500.0,0.00038904,7]
[357300357,1743999061620,-18560.06,0.00038904,7]
[357300358,1743999061630,-500.0,0.00038904,7]
[357300359,1743999061640,-8705.04,0.00038904,7]
[357300360,1743999061651,-628.21449676,0.00038904,7]
[357300361,1743999061661,-500.0,0.00038904,7]
[357300362,1743999061676,-150.14435061,0.00038921,5]
[357300363,1743999061688,-677.08333333,0.00039,30]
[357300364,1743999061698,-677.08333333,0.00039,3]
[357300365,1743999061709,-546.9822307,0.0003901,30]
[357300366,1743999061719,-150.0,0.00039051,2]
[357300367,1743999061729,-150.289,0.00039051,2]
[357300368,1743999061740,-150.301,0.00039051,2]
[357300369,1743999061750,-150.421,0.00039051,2]
[357300370,1743999061760,-160.0,0.00039067,3]
[357300371,1743999061770,-150.02917877,0.00039173,5]
[357300372,1743999061781,-150.43817325,0.00039173,5]
[357300373,1743999061792,-637.48616331,0.00039178,7]
[357300374,1743999061802,-500.0,0.00039178,7]
[357300375,1743999061813,-472.51874779,0.00039178,7]
[357300376,1743999061824,-500.0,0.00039178,7]
[357300377,1743999061836,-500.0,0.00039178,7]
[357300378,1743999062069,-500.0,0.00039178,7]
[357300379,1743999062082,-500.0,0.00039178,7]
[357300380,1743999062093,-500.0,0.00039178,7]
[357300381,1743999062107,-511.42,0.00039178,7]
[357300382,1743999062118,-500.0,0.00039178,7]
[357300383,1743999062129,-500.0,0.00039178,7]
[357300384,1743999062140,-509.35,0.00039178,7]
[357300385,1743999062151,-500.0,0.00039178,7]
[357300386,1743999062162,-540.93,0.00039178,7]
[357300387,1743999062178,-500.0,0.00039178,7]
[357300388,1743999062189,-500.0,0.00039178,7]
[357300389,1743999062200,-500.0,0.00039178,7]
[357300390,1743999062211,-704.76,0.00039178,7]
[357300391,1743999062222,-500.0,0.00039178,7]
[357300392,1743999062233,-1047.59,0.00039178,7]
[357300393,1743999062247,-1000.0,0.00039178,30]
[357300394,1743999062258,-500.0,0.00039178,7]
[357300395,1743999062270,-500.0,0.00039178,7]
[357300396,1743999062280,-500.0,0.00039178,7]
[357300397,1743999062290,-500.0,0.00039178,7]
[357300398,1743999062301,-196.47307023,0.00039178,7]
[357300399,1743999062313,-500.0,0.00039178,7]
[357300400,1743999062323,-500.0,0.00039178,7]
[357300401,1743999062334,-500.0,0.00039178,7]
[357300402,1743999062344,-500.0,0.00039178,7]
[357300403,1743999062354,-1299.52,0.00039178,7]
[357300404,1743999062365,-500.0,0.00039178,7]
[357300405,1743999062375,-500.0,0.00039178,7]
[357300406,1743999062386,-500.0,0.00039178,7]
[357300407,1743999062398,-500.0,0.00039178,7]
[357300408,1743999062408,-500.0,0.00039178,7]
[357300409,1743999062420,-589.31,0.00039178,7]
[357300410,1743999062438,-1000.0,0.00039178,7]
[357300411,1743999062449,-961.09,0.00039178,7]
[357300412,1743999062461,-550.76622662,0.00039178,7]
[357300413,1743999062473,-766.96,0.00039178,7]
[357300414,1743999062485,-500.0,0.00039178,7]
[357300415,1743999062497,-594.74606521,0.00039178,7]
[357300416,1743999062508,-500.0,0.00039178,7]
[357300417,1743999062519,-500.0,0.00039178,7]
[357300418,1743999062529,-500.0,0.00039178,7]
[357300419,1743999062540,-500.0,0.00039178,7]
[357300420,1743999062551,-500.0,0.00039178,7]
[357300421,1743999062561,-567.02233215,0.00039178,7]
[357300422,1743999062572,-500.0,0.00039178,7]
[357300423,1743999062582,-500.0,0.00039178,7]
[357300424,1743999062593,-500.0,0.00039178,7]
[357300425,1743999062604,-500.0,0.00039178,7]
[357300426,1743999062615,-1006.09,0.00039178,7]
[357300427,1743999062625,-500.0,0.00039178,7]
[357300428,1743999062635,-500.0,0.00039178,7]
[357300429,1743999062645,-500.0,0.00039178,7]
[357300430,1743999062654,-1000.0,0.00039178,30]
[357300431,1743999062665,-500.0,0.00039178,7]
[357300432,1743999062679,-505.78,0.00039178,7]
[357300433,1743999062690,-500.0,0.00039178,7]
[357300434,1743999062701,-694.82,0.00039178,7]
[357300435,1743999062712,-500.0,0.00039178,7]
[357300436,1743999062723,-1406.25,0.00039178,7]
[357300437,1743999062734,-500.0,0.00039178,7]
[357300438,1743999062745,-1333.32,0.00039178,7]
[357300439,1743999062755,-500.0,0.00039178,7]
[357300440,1743999062766,-595.64,0.00039178,7]
[357300441,1743999062778,-500.0,0.00039178,7]
[357300442,1743999062788,-513.99774563,0.00039178,7]
[357300443,1743999062799,-500.0,0.00039178,7]
[357300444,1743999062809,-500.0,0.00039178,7]
[357300445,1743999062820,-500.0,0.00039178,7]
[357300446,1743999062830,-504.54034001,0.00039178,7]
[357300447,1743999062840,-500.0,0.00039178,7]
[357300448,1743999062850,-500.0,0.00039178,7]
[357300449,1743999062860,-501.28,0.00039178,7]
[357300450,1743999062870,-545.46,0.00039178,7]
[357300451,1743999062879,-500.0,0.00039178,7]
[357300452,1743999062890,-500.0,0.00039178,7]
[357300453,1743999062900,-1298.7,0.00039178,7]
[357300454,1743999062909,-500.0,0.00039178,7]
[357300455,1743999062919,-500.0,0.00039178,7]
[357300456,1743999062935,-500.0,0.00039178,7]
[357300457,1743999062945,-500.0,0.00039178,3]
[357300458,1743999062955,-500.0,0.00039178,7]
[357300459,1743999062966,-500.0,0.00039178,7]
[357300460,1743999062977,-579.21,0.00039178,7]
[357300461,1743999062987,-816.37,0.00039178,7]
[357300462,1743999062997,-500.0,0.00039178,7]
[357300463,1743999063008,-500.0,0.00039178,7]
[357300464,1743999063023,-500.0,0.00039178,7]
[357300465,1743999063034,-242.59079355,0.00039178,7]
[357300466,1743999063044,-500.0,0.00039178,7]
[357300467,1743999063055,-528.93,0.00039178,7]
[357300468,1743999063065,-456.22910107,0.00039178,7]
[357300469,1743999063075,-504.09,0.00039178,7]
[357300470,1743999063085,-539.99,0.00039178,7]
[357300471,1743999063096,-500.0,0.00039178,7]
[357300472,1743999063107,-500.0,0.00039178,7]
[357300473,1743999063121,-622.51,0.00039178,7]
[357300474,1743999063136,-500.0,0.00039178,7]
[357300475,1743999063147,-500.0,0.00039178,7]
[357300476,1743999063158,-500.0,0.00039178,7]
[357300477,1743999063168,-1374.07,0.00039178,7]
[357300478,1743999063184,-500.0,0.00039178,7]
[357300479,1743999063195,-500.0,0.00039178,7]
[357300480,1743999063205,-500.0,0.00039178,7]
[357300481,1743999063217,-757.16,0.00039178,7]
[357300482,1743999063227,-500.0,0.00039178,7]
[357300483,1743999063238,-500.0,0.00039178,7]
[357300484,1743999063250,-500.0,0.00039178,7]
[357300485,1743999063260,-500.0,0.00039178,7]
[357300486,1743999063271,-500.0,0.00039178,7]
[357300487,1743999063282,-871.18,0.00039178,7]
[357300488,1743999063293,-500.0,0.00039178,7]
[357300489,1743999063304,-500.0,0.00039178,7]
[357300490,1743999063315,-500.0,0.00039178,7]
[357300491,1743999063326,-200.0,0.00039178,7]
[357300492,1743999063336,-500.0,0.00039178,7]
[357300493,1743999063346,-562.53,0.00039178,7]
[357300494,1743999063356,-500.0,0.00039178,7]
[357300495,1743999063367,-500.0,0.00039178,7]
[357300496,1743999063378,-622.82,0.00039178,7]
[357300497,1743999063388,-500.0,0.00039178,7]
[357300498,1743999063399,-500.0,0.00039178,7]
[357300499,1743999063413,-500.0,0.00039178,7]
[357300500,1743999063427,-500.0,0.00039178,7]
[357300501,1743999063438,-500.0,0.00039178,7]
[357300502,1743999063448,-500.0,0.00039178,7]
[357300503,1743999063458,-1670.91,0.00039178,7]
[357300504,1743999063468,-500.0,0.00039178,7]
[357300505,1743999063479,-1175.6,0.00039178,7]
[357300506,1743999063489,-500.0,0.00039178,7]
[357300507,1743999063499,-323.85755688,0.00039178,7]
[357300508,1743999063510,-500.0,0.00039178,7]
[357300509,1743999063520,-500.0,0.00039178,7]
[357300510,1743999063530,-503.97,0.00039178,7]
[357300511,1743999063540,-500.0,0.00039178,7]
[357300512,1743999063550,-938.15,0.00039178,7]
[357300513,1743999063560,-500.0,0.00039178,7]
[357300514,1743999063569,-1047.08,0.00039178,7]
[357300515,1743999063580,-515.78,0.00039178,7]
[357300516,1743999063590,-639.59,0.00039178,7]
[357300517,1743999063600,-500.0,0.00039178,7]
[357300518,1743999063610,-500.0,0.00039178,7]
[357300519,1743999063620,-595.91,0.00039178,7]
[357300520,1743999063630,-500.0,0.00039178,7]
[357300521,1743999063641,-500.0,0.00039178,7]
[357300522,1743999063651,-430.17281134,0.00039178,7]
[357300523,1743999063662,-500.0,0.00039178,7]
[357300524,1743999063674,-500.0,0.00039178,7]
[357300525,1743999063684,-500.0,0.00039178,7]
[357300526,1743999063695,-500.0,0.00039178,7]
[357300527,1743999063705,-500.0,0.00039178,7]
[357300528,1743999063716,-500.0,0.00039178,7]
[357300529,1743999063727,-500.0,0.00039178,7]
[357300530,1743999063738,-500.0,0.00039178,7]
[357300531,1743999063748,-500.0,0.00039178,7]
[357300532,1743999063759,-500.0,0.00039178,7]
[357300533,1743999063769,-500.0,0.00039178,7]
[357300534,1743999063779,-500.0,0.00039178,7]
[357300535,1743999063789,-500.0,0.00039178,7]
[357300536,1743999063800,-594.33,0.00039178,7]
[357300537,1743999063812,-2427.28,0.00039178,7]
[357300538,1743999063823,-500.0,0.00039178,7]
[357300539,1743999063834,-500.0,0.00039178,7]
[357300540,1743999063844,-523.68,0.00039178,7]
[357300541,1743999063855,-702.99,0.00039178,7]
[357300542,1743999063866,-500.0,0.00039178,7]
[357300543,1743999063876,-500.0,0.00039178,7]
[357300544,1743999063888,-500.0,0.00039178,7]
[357300545,1743999063899,-500.0,0.00039178,7]
[357300546,1743999063910,-690.62,0.00039178,7]
[357300547,1743999063923,-500.0,0.00039178,7]
[357300548,1743999063936,-500.0,0.00039178,7]
[357300549,1743999063946,-1235.1,0.00039178,7]
[357300550,1743999063958,-500.0,0.00039178,7]
[357300551,1743999063969,-500.0,0.00039178,7]
[357300552,1743999063980,-1129.9,0.00039178,7]
[357300553,1743999063990,-2511.7,0.00039178,7]
[357300554,1743999064000,-500.0,0.00039178,7]
[357300555,1743999064013,-500.0,0.00039178,7]
[357300556,1743999064024,-500.0,0.00039178,7]
[357300557,1743999064038,-882.15,0.00039178,7]
[357300558,1743999064049,-2115.76,0.00039178,7]
[357300559,1743999064060,-500.0,0.00039178,7]
[357300560,1743999064071,-500.0,0.00039178,7]
[357300561,1743999064082,-500.0,0.00039178,7]
[357300562,1743999064094,-500.0,0.00039178,7]
[357300563,1743999064105,-500.0,0.00039178,7]
[357300564,1743999064117,-500.0,0.00039178,7]
[357300565,1743999064128,-439.69698081,0.00039178,7]
[357300566,1743999064138,-500.0,0.00039178,7]
[357300567,1743999064149,-500.0,0.00039178,7]
[357300568,1743999064159,-500.0,0.00039178,7]
[357300569,1743999064169,-500.0,0.00039178,7]
[357300570,1743999064186,-1957.15,0.00039178,7]
[357300571,1743999064196,-1244.29,0.00039178,7]
[357300572,1743999064206,-500.0,0.00039178,7]
[357300573,1743999064216,-500.0,0.00039178,7]
[357300574,1743999064227,-971.01,0.00039178,7]
[357300575,1743999064237,-507.66563661,0.00039178,7]
[357300576,1743999064247,-500.0,0.00039178,7]
[357300577,1743999064257,-500.0,0.00039178,7]
[357300578,1743999064267,-500.0,0.00039178,7]
[357300579,1743999064277,-500.0,0.00039178,7]
[357300580,1743999064287,-573.33,0.00039178,7]
[357300581,1743999064297,-500.0,0.00039178,7]
[357300582,1743999064308,-1079.38,0.00039178,7]
[357300583,1743999064318,-500.0,0.00039178,7]
[357300584,1743999064328,-2231.25,0.00039178,7]